Cogmind - Beta 10.2 @@@ ROGUE MODE // 2021.12.21 @ 22:41:13 Player: TLFP Result: Destroyed by as-97071 with Assembled Rifle Performance ------------- Evolutions (0) 0 Regions Visited (2) 400 Robots Destroyed (11) 55 Value Destroyed (243) 243 Prototype IDs (0) 0 Alien Tech Used (0) 0 Bonus (0) 0 TOTAL SCORE: 698 Bonus ------- None Cogmind --------- Core Integrity 0/250 Matter 276/300 Energy 100/100 System Corruption 0% Temperature Cool (0) Movement Walking (120) Location -10/Mines Parts ------- > --- POWER (1) -------- (None) > --- PROPULSION (2) --- Aluminum Leg > --- UTILITY (2) ------ Small Storage Unit > --- WEAPON (2) ------- Flak Cannon > --- INVENTORY (6) ---- Ion Engine Light Treads Light Assault Rifle Great Maul Peak State ------------ > --- POWER ------------ Light Nuclear Core > --- PROPULSION ------- Light Treads Compact Wheel > --- UTILITY ---------- Small Storage Unit High-capacity Storage Unit > --- WEAPON ----------- Medium Laser Flak Cannon > --- INVENTORY -------- Ion Engine Light Treads Aluminum Leg Aluminum Leg Light Assault Rifle Minigun Flak Cannon Great Maul [Rating: 12] Favorites ----------- Power Light Nuclear Core Engine Ion Engine Power Core Light Nuclear Core Propulsion Light Treads Treads Light Treads Leg Aluminum Leg Wheel Compact Wheel Utility Small Storage Unit Storage Small Storage Unit Weapon Light Assault Rifle Energy Gun Medium Laser Ballistic Gun Light Assault Rifle Ballistic Cannon Flak Cannon Build | -11 -10 -10 ------- Run | Scr Mat Min Slots Evolved . | . . . Power . | . . . Propulsion . | . . . Utility . | . . . Weapon . | . . . Parts Attached 12 | . 7 5 Power 1 | . 1 . Engine . | . . . Core 1 | . 1 . Reactor . | . . . Propulsion 6 | . 3 3 Treads 2 | . 1 1 Leg 2 | . . 2 Wheel 2 | . 2 . Hover . | . . . Flight . | . . . Utility 1 | . 1 . Device . | . . . Storage 1 | . 1 . Processor . | . . . Hackware . | . . . Protection . | . . . Artifact . | . . . Weapon 4 | . 2 2 Energy Gun 1 | . 1 . Energy Cannon . | . . . Ballistic Gun 1 | . 1 . Ballistic Cannon 2 | . . 2 Launcher . | . . . Special Weapon . | . . . Impact Weapon . | . . . Slashing Weapon . | . . . Piercing Weapon . | . . . Special Melee Weapon . | . . . Unidentified Prototypes . | . . . Parts Lost 9 | . 3 6 Power 2 | . 1 1 Propulsion 4 | . 1 3 Utility . | . . . Weapon 3 | . 1 2 Highest Loss Streak 6 | . 1 6 Average Slot Usage (%) 88 | . 88 89 Engine 3 | . 6 . Core 7 | . 5 11 Treads 11 | . 10 13 Leg 3 | . 4 3 Wheel 11 | . 13 10 Storage 21 | . 19 24 Energy Gun 6 | . 3 11 Ballistic Gun 18 | . 24 8 Ballistic Cannon 1 | . . 4 Naked Turns . | . . . Heaviest Build 49 | 11 44 49 Greatest Support 40 | 20 20 40 Greatest Overweight (x) 3 | . 2 3 Average Overweight (x) 1 | . 1 1 Largest Inventory Capacity 14 | . 14 14 Average Capacity 10 | . 9 12 Most Carried 8 | . 6 8 Average Carried 5 | . 5 6 Final Capacity 14 | 6 14 6 Final Carried 6 | 6 4 4 Class Distribution -------------------- 100% | Mutant Dominant Class ---------------- Mutant | -10/Materials Mutant | -10/Mines Resources | -11 -10 -10 ----------- Run | Scr Mat Min Matter Collected 379 | 200 140 39 Remotely . | . . . Salvage Created 346 | . 319 27 Parts 23 | . 23 . Haulers Intercepted . | . . . Recyclers Shooed 1 | . . 1 Parts Field Recycled . | . . . Retrieved Matter . | . . . Parts Self-Destructed . | . . . Prevented . | . . . Kills | -11 -10 -10 ------- Run | Scr Mat Min Combat Hostiles Destroyed 13 | . 11 2 Guns 11 | . 11 . Cannons 2 | . . 2 Classes Destroyed 3 | . 2 1 Swarmer 6 | . 6 . Grunt 5 | . 5 . Assembled 2 | . . 2 Best Kill Streak 4 | . 4 1 Combat Bots Only 4 | . 4 1 Max Kills in Single Turn 1 | . 1 1 Gunslinging . | . . . Exploded . | . . . Melee . | . . . Uniques/NPCs Destroyed . | . . . Combat | -11 -10 -10 -------- Run | Scr Mat Min Damage Taken 1366 | . 555 811 Core 252 | . 105 147 Absorbed by Shields . | . . . Core Remaining (%) 100 | 100 . . Volleys Fired 49 | . 46 3 Largest 2 | . 2 2 Hottest 94 | . 70 94 Shots Fired 96 | . 91 5 Gun 93 | . 91 2 Cannon 3 | . . 3 Launcher . | . . . Special . | . . . Kinetic 88 | . 85 3 Thermal 8 | . 6 2 Explosive . | . . . Electromagnetic . | . . . Robot Hit Streak 15 | . 15 8 Robot Miss Streak 2 | . 2 2 Penetration Max . | . . . Secondary Targets . | . . . Shots Hit Robots 66 | . 62 4 Core Hits 28 | . 23 5 Critical Hits . | . . . Critical Kills . | . . . Critical Parts Destroyed . | . . . Melee Attacks . | . . . Impact . | . . . Slashing . | . . . Piercing . | . . . Sneak Attacks . | . . . Combat Hostiles . | . . . Follow-up Attacks . | . . . Damage Inflicted 605 | . 517 88 Guns 541 | . 517 24 Cannons 60 | . . 60 Explosions . | . . . Melee . | . . . Ramming 4 | . . 4 Kinetic 501 | . 441 60 Thermal 100 | . 76 24 Explosive . | . . . Electromagnetic . | . . . Impact . | . . . Slashing . | . . . Piercing . | . . . Highest Corruption . | . . . Average Corruption . | . . . Corruption Purged . | . . . Overload Shots . | . . . Overflow Damage . | . . . Projectiles . | . . . Explosions . | . . . Melee . | . . . Knockbacks 1 | . . 1 Impact . | . . . Kinetic 1 | . . 1 Secondary . | . . . Self-Inflicted Damage 2 | . . 2 Shots . | . . . Rammed 1 | . . 1 Targets Rammed 1 | . . 1 Kicked . | . . . Crushed . | . . . Highest Temperature 168 | . 168 78 Average Temperature 37 | . 38 29 Received Heat Transfer 373 | . 207 166 Siege Activations . | . . . Robots Corrupted . | . . . Combat Hostiles . | . . . Parts Fried . | . . . Impact Corruptions . | . . . Robots Melted . | . . . Combat Hostiles . | . . . Parts Melted . | . . . Heat Transferred 296 | . 222 74 Parts Sabotaged . | . . . Parts Stolen . | . . . Parts Stripped . | . . . Power Chain Reactions . | . . . Missiles Intercepted . | . . . Alert | -11 -10 -10 ------- Run | Scr Mat Min Peak Influence 290 | . 290 112 Initial 112 | . . 112 Average 126 | . 149 93 Maximum Alert Level 1 | . 1 . Low Security (%) 81 | . 69 100 Level 1 18 | . 30 . Level 2 . | . . . Level 3 . | . . . Level 4 . | . . . Level 5 . | . . . High Security . | . . . Max Security . | . . . Squads Dispatched 3 | . 2 1 Investigation 3 | . 2 1 Extermination . | . . . Reinforcement . | . . . Assault . | . . . Garrison . | . . . Intercept . | . . . Construction Impeded . | . . . Haulers Reinforced . | . . . Stealth | -11 -10 -10 --------- Run | Scr Mat Min Distress Signals 4 | . 3 1 Communications Jammed . | . . . Distress Signals . | . . . Times Spotted 33 | . 14 19 Peak Tracking Total 14 | . 5 14 Tactical Retreats . | . . . Traps | -11 -10 -10 ------- Run | Scr Mat Min Traps Triggered 1 | . 1 . Indirectly . | . . . Trap Hack Attempts . | . . . Triggered . | . . . Disarmed . | . . . Reprogrammed . | . . . Reused . | . . . Traps Extracted . | . . . Installed . | . . . Triggered . | . . . Machines | -11 -10 -10 ---------- Run | Scr Mat Min Machines Disabled . | . . . Max in Single Turn . | . . . Machines Sabotaged . | . . . Garrisons Compromised . | . . . Overloaded Fab Kills . | . . . Fab Network Shutdowns . | . . . Hacking | -11 -10 -10 --------- Run | Scr Mat Min Machines Accessed 2 | . 1 1 Terminals . | . . . Fabricators . | . . . Repair Stations . | . . . Recycling Units 1 | . 1 . Scanalyzers . | . . . Garrison Access . | . . . Total Hacks 2 | . 1 1 Successful 2 | . 1 1 Failed . | . . . Catastrophic . | . . . Database Lockouts . | . . . Manual 1 | . 1 . Terminals . | . . . Fabricators . | . . . Repair Stations . | . . . Recycling Units 1 | . 1 . Scanalyzers . | . . . Garrison Access . | . . . Terminal Hacks 1 | . . 1 Open Door 1 | . . 1 Fabricator Hacks . | . . . Repair Station Hacks . | . . . Recycling Unit Hacks . | . . . Scanalyzer . | . . . Garrison Access Hacks . | . . . Unauthorized Hacks 1 | . 1 . Terminals . | . . . Fabricators . | . . . Repair Stations . | . . . Recycling Units 1 | . 1 . Tunnel 1 | . 1 . Scanalyzers . | . . . Garrison Access . | . . . Data Cores Recovered . | . . . Used . | . . . Hacking Detections . | . . . Full Trace Events . | . . . Feedback Events . | . . . Feedback Blocked . | . . . Robot Schematics Acquired . | . . . Robots Built . | . . . Matter . | . . . Time . | . . . Total Robot Build Rating . | . . . Part Schematics Acquired . | . . . Parts Built . | . . . Matter . | . . . Time . | . . . Total Part Build Rating . | . . . Parts Repaired . | . . . Time . | . . . Parts Recycled . | . . . Recycled Matter . | . . . Retrieved Matter . | . . . Retrieved Components . | . . . Parts Scanalyzed . | . . . Part Schematics Acquired . | . . . Parts Damaged . | . . . Bothacking | -11 -10 -10 ------------ Run | Scr Mat Min Used RIF Installer . | . . . Robots Hacked . | . . . Non-combat . | . . . Combat . | . . . Robot Hacks Applied . | . . . Relay Couplers Released . | . . . Robots Rewired . | . . . Allies Hacked . | . . . Hacks Repelled . | . . . Allies | -11 -10 -10 -------- Run | Scr Mat Min Total Allies 2 | . . 2 Largest Group 2 | . . 2 Highest-Rated Group 46 | . . 46 Highest-Rated Ally 31 | . . 31 Total Orders . | . . . Ally Attacks 8 | . . 8 Total Damage 85 | . . 85 Kills 3 | . . 3 Allies Corrupted . | . . . Allies Melted . | . . . Intel | -11 -10 -10 ------- Run | Scr Mat Min Robot Analysis Total . | . . . Derelict Logs Recovered 1 | . . 1 Drone Launches . | . . . Drone Recoveries . | . . . Exploration | -11 -10 -10 ------------- Run | Scr Mat Min Turns Passed 544 | . 323 221 Spaces Moved 336 | 1 171 164 Core . | . . . Treads 7 | . 5 2 Legs 40 | 1 3 36 Wheels 289 | . 163 126 Hover . | . . . Flight . | . . . Fastest Speed 90 | 120 90 120 Average Speed 115 | 120 107 122 Slowest Speed 180 | 120 160 180 Overloaded Moves . | . . . Propulsion Burnouts . | . . . Robots Hopped . | . . . Cave-ins Triggered . | . . . Exploration Rate (%) 24 | 2 33 38 Regions Visited 2 Branch Regions 1 Pre-discovered Areas 1 | . 1 . Known Exits Taken . | . . . Unknown Exits Taken 2 | 1 1 . Scrap Searched . | . . . Spaces Dug . | . . . Terrain Destroyed . | . . . Melee . | . . . Projectile . | . . . AOE . | . . . Terrain Rammed . | . . . Walls Destroyed . | . . . Machines Disabled . | . . . Actions | -11 -10 -10 --------- Run | Scr Mat Min Total 412 | . 234 178 Wait 9 | . 9 . Move 334 | . 170 164 Hop . | . . . Pick Up 5 | . 1 4 Fast Attach 1 | . 1 . Attach 6 | . 3 3 Detach . | . . . Swap 5 | . 3 2 Drop 2 | . 1 1 Fire 49 | . 46 3 Melee . | . . . Ram . | . . . Kick 1 | . . 1 Crush . | . . . Escape Stasis . | . . . Rewire . | . . . Trap . | . . . Miscellaneous . | . . . Route ------- -11/Scrapyard -10/Materials -10/Mines (discovered 1 exit: [*Mat]) History --------- Turn | Location | Event 1 | -11/Scrapyard | Discovered new exit (range 0) 1 | -11/Scrapyard | Entered Materials 303 | -10/Materials | Build established: Mutant 315 | -10/Materials | Discovered new exit (range 8) 324 | -10/Materials | Entered Mines 340 | -10/Mines | Learned Materials stockpile data 365 | -10/Mines | Met a Derelict shopkeep closing up shop 454 | -10/Mines | Assembled infested the area 494 | -10/Mines | Core integrity fell below 50% 523 | -10/Mines | Core integrity fell below 20% 538 | -10/Mines | Discovered new exit (range 11) 545 | -10/Mines | Destroyed by as-97071 with Assembled Rifle Last Messages --------------- 00496_ as-30714 sneak attacks. 00496_ R-06 Scavenger system corrupted by crushing effect. 00496_ R-06 Scavenger knocked back. 00496_ Acquired 37 matter. 00497_ R-06 Scavenger system terminally corrupted. 00500_ as-30714 destroyed. 00502_ Med. Laser destroyed. 00503_ Lgt. Nuclear Core destroyed. 00518_ as-01993 shuts down. 00521_ Lgt. Treads destroyed. 00526_ Slammed into R-06 Scavenger. 00526_ R-06 Scavenger sends out distress signal. 00527_ Aluminum Leg destroyed. 00527_ Flak Cannon destroyed. 00528_ Acquired 2 matter. 00532_ as-30217 knocked back. 00532_ as-30217 destroyed. 00538_ EXIT=FOUND 00538_ K-01 Serf collects debris. 00541_ U-05 Engineer builds a Wall. Map ----- +----------------------------------------------------+ | | | | | | | | | | | | | | | ???????????????????????????????? | | ###????????????????????????????? | | # #???????????????????????????? | | ? ####???????????????????????? | | ? #??????????????????????? | | ??? ##????????????????????? | | ???? ####?????????????????? | | ????? ??????????????????? | | ??????# #??????????????????? | | ???????# ##?????????????????? | | ???????# #?????????????????? | | ???????# #?????????????????? | | ??????## #####?????????????? | | ?????## #?????????????? | | ###### ### %#?????????????? | | ##?# #########?????? | | ##??# a aa #?????? | | #### #???# aa aa ###???? | | #??# #???####### # @ #???? | | #??# #????????# % #???? | | #??# #????????#### k# #???? | | #??## ##???????????#%u #???? | | #???#####????????????#= ###???? | | $#???????????????????? ?????? | | ##??????????????????? ????? | | ?????????????????????